fUST/lending_fUST_20240907
["ID","MTS","AMOUNT","RATE_DAILY","PERIOD"]
[337421618,1725658303679,-1024.77680163,0.00054,120]
[337421619,1725658303692,-198.21255022,0.00054,120]
[337421620,1725658303708,-611.299005,0.00054,30]
[337421621,1725658303724,-912.19886672,0.00054,120]
[337421622,1725658303739,-2724.3,0.000542,30]
[337421623,1725658303755,-600.96,0.00054246,120]
[337421624,1725658303770,-600.96,0.00054246,120]
[337421625,1725658303785,-600.96,0.00054246,120]
[337421626,1725658303801,-600.96,0.00054246,120]
[337421627,1725658303817,-600.96,0.00054246,120]
[337421628,1725658303832,-600.96,0.00054246,120]
[337421629,1725658303847,-600.96,0.00054246,120]
[337421630,1725658303861,-600.96,0.00054246,120]
[337421631,1725658304008,-600.96,0.00054246,120]
[337421632,1725658304018,-600.96,0.00054246,120]
[337421633,1725658304028,-600.96,0.00054246,120]
[337421634,1725658304038,-600.96,0.00054246,120]
[337421635,1725658304049,-600.96,0.00054246,120]
[337421636,1725658304059,-600.96,0.00054246,120]
[337421637,1725658304069,-600.96,0.00054246,120]
[337421638,1725658304080,-600.96,0.00054246,120]
[337421639,1725658304090,-600.96,0.00054246,120]
[337421640,1725658304100,-600.96,0.00054246,120]
[337421641,1725658304111,-600.96,0.00054246,120]
[337421642,1725658304120,-600.96,0.00054246,120]
[337421643,1725658304130,-600.96,0.00054246,120]
[337421644,1725658304140,-600.96,0.00054246,120]
[337421645,1725658304151,-600.96,0.00054246,120]
[337421646,1725658304161,-601.12,0.00054246,120]
[337421647,1725658304171,-250.0,0.000543,30]
[337421648,1725658304180,-446.0,0.0005437,120]
[337421649,1725658304189,-152.76035624,0.0005445,96]
[337421650,1725658304198,-300.0,0.000545,43]
[337421651,1725658304207,-200.0,0.000545,98]
[337421652,1725658304218,-200.0,0.000545,98]
[337421653,1725658304228,-500.0,0.00054553,30]
[337421654,1725658304238,-10000.0,0.000547,30]
[337421655,1725658304247,-500.0,0.00054791,120]
[337421656,1725658304257,-500.0,0.00054791,120]
[337421657,1725658304267,-500.0,0.00054791,120]
[337421658,1725658304277,-500.0,0.00054791,120]
[337421659,1725658304288,-500.0,0.00054791,120]
[337421660,1725658304297,-500.0,0.00054791,120]
[337421661,1725658304306,-500.0,0.00054791,120]
[337421662,1725658304316,-500.0,0.00054791,120]
[337421663,1725658304325,-500.0,0.00054791,120]
[337421664,1725658304335,-500.0,0.00054791,120]
[337421665,1725658304345,-500.0,0.00054791,120]
[337421666,1725658304355,-500.0,0.00054791,120]
[337421667,1725658304365,-500.0,0.00054791,120]
[337421668,1725658304377,-500.0,0.00054791,120]
[337421669,1725658304389,-500.0,0.00054791,120]
[337421670,1725658304401,-500.0,0.00054791,120]
[337421671,1725658304413,-500.0,0.00054791,120]
[337421672,1725658304422,-500.0,0.00054791,120]
[337421673,1725658304432,-500.0,0.00054791,120]
[337421674,1725658304441,-341.15147109,0.00054791,120]
[337421675,1725658304452,-500.0,0.00054794,120]
[337421676,1725658304462,-500.0,0.00054794,120]
[337421677,1725658304472,-500.0,0.00054794,120]
[337421678,1725658304482,-500.0,0.00054794,120]
[337421679,1725658304491,-500.0,0.00054794,120]
[337421680,1725658304501,-500.0,0.00054794,120]
[337421681,1725658304510,-500.0,0.00054794,120]
[337421682,1725658304519,-500.0,0.00054794,120]
[337421683,1725658304529,-500.0,0.00054794,120]
[337421684,1725658304540,-500.0,0.00054794,120]
[337421685,1725658304550,-500.0,0.00054794,120]
[337421686,1725658304559,-500.0,0.00054794,120]
[337421687,1725658304569,-500.0,0.00054794,120]
[337421688,1725658304579,-408.85618648,0.00054794,120]
[337421689,1725658304590,-1449.86267296,0.00054794,120]
[337421690,1725658304599,-1029.45221637,0.00054794,120]
[337421691,1725658304609,-151.0,0.00054795,30]
[337421692,1725658304619,-151.0,0.00054795,30]
[337421693,1725658304628,-151.0,0.00054795,30]
[337421694,1725658304638,-151.0,0.00054795,30]
[337421695,1725658304647,-151.0,0.00054795,30]
[337421696,1725658304656,-151.0,0.00054795,30]
[337421697,1725658304666,-151.0,0.00054795,30]
[337421698,1725658304676,-151.0,0.00054795,30]
[337421699,1725658304685,-151.0,0.00054795,30]
[337421700,1725658304694,-151.0,0.00054795,30]
[337421701,1725658304704,-151.0,0.00054795,30]
[337421702,1725658304714,-176.926313,0.00054795,30]
[337421703,1725658304723,-500.0,0.00054795,120]
[337421704,1725658304733,-500.0,0.00054795,120]
[337421705,1725658304742,-500.0,0.00054795,120]
[337421706,1725658304751,-500.0,0.00054795,120]
[337421707,1725658304760,-500.0,0.00054795,120]
[337421708,1725658304769,-500.0,0.00054795,120]
[337421709,1725658304778,-500.0,0.00054795,120]
[337421710,1725658304788,-455.68633371,0.00054795,120]
[337421711,1725658304798,-500.0,0.00054795,120]
[337421712,1725658304807,-500.0,0.00054795,120]
[337421713,1725658304817,-500.0,0.00054795,120]
[337421714,1725658304826,-500.0,0.00054795,120]
[337421715,1725658304835,-500.0,0.00054795,120]
[337421716,1725658304845,-500.0,0.00054795,120]
[337421717,1725658304854,-500.0,0.00054795,120]
[337421718,1725658304864,-500.0,0.00054795,120]
[337421719,1725658304874,-500.0,0.00054795,120]
[337421720,1725658304884,-500.0,0.00054795,120]
[337421721,1725658304895,-500.0,0.00054795,120]
[337421722,1725658304906,-500.0,0.00054795,120]
[337421723,1725658304915,-500.0,0.00054795,120]
[337421724,1725658304924,-500.0,0.00054795,120]
[337421725,1725658304934,-500.0,0.00054795,120]
[337421726,1725658304944,-500.0,0.00054795,120]
[337421727,1725658304953,-500.0,0.00054795,120]
[337421728,1725658304963,-500.0,0.00054795,120]
[337421729,1725658304972,-500.0,0.00054795,120]
[337421730,1725658304984,-500.0,0.00054795,120]
[337421731,1725658304993,-500.0,0.00054795,120]
[337421732,1725658305004,-500.0,0.00054795,120]
[337421733,1725658305014,-500.0,0.00054795,120]
[337421734,1725658305023,-500.0,0.00054795,120]
[337421735,1725658305033,-500.0,0.00054795,120]
[337421736,1725658305044,-500.0,0.00054795,120]
[337421737,1725658305054,-500.0,0.00054795,120]
[337421738,1725658305063,-500.0,0.00054795,120]
[337421739,1725658305073,-500.0,0.00054795,120]
[337421740,1725658305082,-500.0,0.00054795,120]
[337421741,1725658305092,-500.0,0.00054795,120]
[337421742,1725658305101,-396.60144533,0.00054795,120]
[337421743,1725658305111,-500.0,0.00054795,120]
[337421744,1725658305121,-500.0,0.00054795,120]
[337421745,1725658305130,-500.0,0.00054795,120]
[337421746,1725658305139,-500.0,0.00054795,120]
[337421747,1725658305149,-500.0,0.00054795,120]
[337421748,1725658305158,-500.0,0.00054795,120]
[337421749,1725658305168,-500.0,0.00054795,120]
[337421750,1725658305178,-500.0,0.00054795,120]
[337421751,1725658305187,-500.0,0.00054795,120]
[337421752,1725658305196,-500.0,0.00054795,120]
[337421753,1725658305206,-500.0,0.00054795,120]
[337421754,1725658305215,-500.0,0.00054795,120]
[337421755,1725658305224,-500.0,0.00054795,120]
[337421756,1725658305234,-500.0,0.00054795,120]
[337421757,1725658305244,-500.0,0.00054795,120]
[337421758,1725658305253,-1071.88258026,0.00054795,120]
[337421759,1725658305264,-1071.88258026,0.00054795,120]
[337421760,1725658305273,-1016.05536254,0.00054795,120]
[337421761,1725658305283,-1016.05536254,0.00054795,120]
[337421762,1725658305293,-1016.05536254,0.00054795,120]
[337421763,1725658305303,-1016.05536254,0.00054795,120]
[337421764,1725658305313,-1071.88258026,0.00054795,120]
[337421765,1725658305322,-1016.05536254,0.00054795,120]
[337421766,1725658305332,-1071.88258026,0.00054795,120]
[337421767,1725658305341,-1071.88258026,0.00054795,120]
[337421768,1725658305351,-1016.05536254,0.00054795,120]
[337421769,1725658305361,-1016.05536254,0.00054795,120]
[337421770,1725658305370,-1016.05536254,0.00054795,120]
[337421771,1725658305384,-1071.88258026,0.00054795,120]
[337421772,1725658305393,-1071.88258026,0.00054795,120]
[337421773,1725658305403,-1016.05536254,0.00054795,120]
[337421774,1725658305413,-1016.05536254,0.00054795,120]
[337421775,1725658305423,-1016.05536254,0.00054795,120]
[337421776,1725658305433,-1071.88258026,0.00054795,120]
[337421777,1725658305442,-1016.05536254,0.00054795,120]
[337421778,1725658305454,-1016.05536254,0.00054795,120]
[337421779,1725658305465,-1016.05536254,0.00054795,120]
[337421780,1725658305475,-1016.05536254,0.00054795,120]
[337421781,1725658305484,-1016.05536254,0.00054795,120]
[337421782,1725658305493,-1071.88258026,0.00054795,120]
[337421783,1725658305503,-1016.05536254,0.00054795,120]
[337421784,1725658305512,-1016.05536254,0.00054795,120]
[337421785,1725658305521,-1016.05536254,0.00054795,120]
[337421786,1725658305531,-1016.05536254,0.00054795,120]
[337421787,1725658305543,-1016.05536254,0.00054795,120]
[337421788,1725658305552,-1071.88258026,0.00054795,120]
[337421789,1725658305562,-1016.05536254,0.00054795,120]
[337421790,1725658305572,-1016.05536254,0.00054795,120]
[337421791,1725658305584,-1016.05536254,0.00054795,120]
[337421792,1725658305594,-1016.05536254,0.00054795,120]
[337421793,1725658305605,-1016.05536254,0.00054795,120]
[337421794,1725658305615,-1016.05536254,0.00054795,120]
[337421795,1725658305624,-1016.05536254,0.00054795,120]
[337421796,1725658305634,-1091.98037864,0.00054795,120]
[337421797,1725658305644,-1019.18168673,0.00054795,120]
[337421798,1725658305654,-1019.18168673,0.00054795,120]
[337421799,1725658305664,-1019.18168673,0.00054795,120]
[337421800,1725658305673,-1019.18168673,0.00054795,120]
[337421801,1725658305683,-1019.18168673,0.00054795,120]
[337421802,1725658305795,-1091.98037863,0.00054795,120]
[337421803,1725658305805,-1000.0,0.00054999,120]
[337421804,1725658305815,-199.999999,0.00055,120]
[337421805,1725658305825,-5891.644929,0.00055,30]
[337421806,1725658305835,-151.0,0.00055068,120]
[337421807,1725658305845,-300.0,0.000555,45]
[337421808,1725658305854,-200.0,0.000555,102]
[337421809,1725658305865,-200.0,0.000555,102]
[337421810,1725658305875,-150.0,0.00056,120]
[337421811,1725658305884,-1002.9382,0.00056,60]
[337421812,1725658305893,-151.0,0.00056027,120]
[337421813,1725658305903,-300.0,0.000565,47]
[337421814,1725658305912,-200.0,0.000565,106]
[337421815,1725658305922,-200.0,0.000565,106]
[337421816,1725658305931,-500.0,0.00056533,120]
[337421817,1725658305941,-500.0,0.00056533,120]
[337421818,1725658305950,-556.05,0.00056533,120]
[337421819,1725658305959,-500.0,0.00056533,120]
[337421820,1725658305968,-500.0,0.00056533,120]
[337421821,1725658305978,-500.0,0.00056533,120]
[337421822,1725658305988,-500.0,0.00056533,120]
[337421823,1725658305997,-500.0,0.00056533,120]
[337421824,1725658306006,-500.0,0.00056533,120]
[337421825,1725658306016,-500.0,0.00056533,120]
[337421826,1725658306026,-500.0,0.00056533,120]
[337421827,1725658306035,-500.0,0.00056533,120]
[337421828,1725658306052,-500.0,0.00056533,120]
[337421829,1725658306062,-500.0,0.00056533,120]
[337421830,1725658306072,-500.0,0.00056533,120]
[337421831,1725658306081,-500.0,0.00056533,120]
[337421832,1725658306091,-500.0,0.00056533,120]
[337421833,1725658306101,-500.0,0.00056533,120]
[337421834,1725658306110,-500.0,0.00056533,120]
[337421835,1725658306120,-500.0,0.00056533,120]
[337421836,1725658306129,-500.0,0.00056533,120]
[337421837,1725658306139,-500.0,0.00056533,120]
[337421838,1725658306149,-500.0,0.00056533,120]
[337421839,1725658306159,-500.0,0.00056533,120]
[337421840,1725658306168,-595.39,0.00056533,120]
[337421841,1725658306177,-500.0,0.00056533,120]
[337421842,1725658306187,-151.0,0.0005674,120]
[337421843,1725658306196,-1000.0,0.00056999,120]
[337421844,1725658306206,-3251.54160373,0.00057,120]
[337421845,1725658306216,-150.0,0.00057,120]
[337421846,1725658306226,-500.0,0.00057424,120]
[337421847,1725658306235,-1000.0,0.00057499,120]
[337421848,1725658306244,-300.0,0.000575,48]
[337421849,1725658306253,-200.0,0.000575,110]
[337421850,1725658306262,-200.0,0.000575,110]
[337421851,1725658306271,-609.9475,0.000575,2]
[337421852,1725658306280,-609.9475,0.000575,2]
[337421853,1725658306291,-480.21,0.00057533,120]
[337421854,1725658306299,-414.787129,0.00057618,120]
[337421855,1725658306308,-200.0,0.00058,120]
[337421856,1725658306317,-151.0,0.00058411,120]
[337421857,1725658306326,-151.0,0.0005863,120]
[337421858,1725658306336,-195.27,0.0005896,30]
[337421859,1725658306346,-399.58,0.00059124,30]
[337421860,1725658306356,-1000.0,0.0006,120]
[337421861,1725658306370,-55000.0,0.0006,120]
[337421862,1725658306379,-250.0,0.0006,120]
[337421863,1725658306388,-150.0,0.0006,120]
[337421864,1725658306398,-1110.3105119,0.0006,120]
[337421865,1725658306407,-1858.90822869,0.0006,120]
[337421866,1725658306417,-688.86855017,0.0006,12]
[337421867,1725658306427,-583.57,0.0006,30]
[337421868,1725658306437,-2007.47098381,0.0006,120]
[337421869,1725658306447,-500.0,0.0006,120]
[337421870,1725658306460,-466.95,0.0006,30]
[337421871,1725658306469,-151.0,0.00060082,120]
[337421872,1725658306478,-3000.0,0.00060136,120]
[337421873,1725658306487,-500.0,0.00060295,120]
[337421874,1725658306496,-642.79872148,0.00060748,2]
[337421875,1725658306506,-480.0,0.00060971,14]
[337421876,1725658306515,-480.0,0.00060975,14]
[337421877,1725658306524,-150.0,0.00061,120]
[337421878,1725658306534,-707.26,0.00061,30]
[337421879,1725658306554,-151.0,0.00061233,120]
[337421880,1725658306563,-1000.0,0.00061649,30]
[337421881,1725658306572,-151.0,0.00061753,120]
[337421882,1725658306583,-150.0,0.00062,120]
[337421883,1725658306592,-200.0,0.00062,120]
[337421884,1725658306602,-2724.3,0.00062,30]
[337421885,1725658306613,-3000.0,0.00062848,120]
[337421886,1725658306623,-150.0,0.00063,120]
[337421887,1725658306634,-1003.7076,0.00063,120]
[337421888,1725658306643,-500.0,0.0006331,120]
[337421889,1725658306653,-151.0,0.00063425,120]
[337421890,1725658306663,-414.787129,0.00063723,120]
[337421891,1725658306672,-151.0,0.00063836,120]
[337421892,1725658306682,-200.0,0.00064,120]
[337421893,1725658306691,-300.0,0.00064,120]
[337421894,1725658306700,-348.51398497,0.000644,120]
[337421895,1725658306710,-152.76035624,0.0006445,120]
[337421896,1725658306720,-172.973536,0.0006484,120]
[337421897,1725658306729,-163.438529,0.0006484,120]
[337421898,1725658306738,-1000.0,0.00065,120]
[337421899,1725658306748,-500.0,0.00065,120]
[337421900,1725658306759,-151.0,0.00065096,120]
[337421901,1725658306769,-3000.0,0.00065561,120]
[337421902,1725658306779,-8000.0,0.00066,120]
[337421903,1725658306790,-151.0,0.00066438,120]
[337421904,1725658306799,-500.0,0.00066475,120]
[337421905,1725658306808,-151.0,0.00066767,120]
[337421906,1725658306817,-466.95,0.000671,30]
[337421907,1725658306826,-45318.98528465,0.00068,120]
[337421908,1725658306837,-3000.0,0.00068273,120]
[337421909,1725658306848,-800.53486802,0.00068357,28]
[337421910,1725658306858,-151.0,0.00068438,120]
[337421911,1725658306867,-1000.0,0.00068492,120]
[337421912,1725658306877,-200.0,0.00068493,120]
[337421913,1725658306886,-750.0,0.00068493,120]
[337421914,1725658306895,-65989.98,0.00069,30]
[337421915,1725658306904,-3000.0,0.00069,120]
[337421916,1725658306914,-3000.0,0.0006901,120]
[337421917,1725658306923,-3000.0,0.0006902,120]
[337421918,1725658306932,-3000.0,0.0006903,120]
[337421919,1725658306942,-5508.950277,0.0006904,120]
[337421920,1725658306951,-151.0,0.00069041,120]
[337421921,1725658306961,-165.7804306,0.00069799,120]
[337421922,1725658306970,-414.787129,0.00069828,120]
[337421923,1725658306979,-200.0,0.00069863,120]
[337421924,1725658306989,-1000.0,0.0007,120]
[337421925,1725658306998,-162.44,0.0007,30]
[337421926,1725658307008,-300.0,0.0007,120]
[337421927,1725658307019,-500.0,0.0007,120]
[337421928,1725658307028,-339.3,0.0007,30]
[337421929,1725658307039,-151.0,0.0007011,120]
[337421930,1725658307051,-159.9787797,0.00070137,60]
[337421931,1725658307061,-154.3898411,0.00070137,60]
[337421932,1725658307070,-3000.0,0.00070985,120]
[337421933,1725658307079,-2724.3,0.00071,30]
[337421934,1725658307088,-200.0,0.00071232,120]
[337421935,1725658307097,-151.0,0.00071644,120]
[337421936,1725658307106,-151.0,0.00071781,120]
[337421937,1725658307116,-2000.0,0.00072069,10]
[337421938,1725658307126,-750.0,0.00072098,120]
[337421939,1725658307135,-200.0,0.00072602,120]
[337421940,1725658307145,-151.0,0.00073452,120]
[337421941,1725658307154,-3000.0,0.00073697,120]
[337421942,1725658307163,-200.0,0.00073972,120]
[337421943,1725658307172,-300.0,0.00074,120]
[337421944,1725658307181,-151.0,0.00074247,120]
[337421945,1725658307191,-152.76035624,0.0007445,120]
[337421946,1725658307201,-5000.0,0.00075,75]
[337421947,1725658307211,-1000.0,0.00075,120]
[337421948,1725658307221,-1000.0,0.00075,2]
[337421949,1725658307230,-160.0,0.00075,70]
[337421950,1725658307240,-1508.08924741,0.00075,120]
[337421951,1725658307250,-5035.0,0.00075,120]
[337421952,1725658307260,-17000.0,0.00075,120]
[337421953,1725658307269,-500.0,0.00075,120]
[337421954,1725658307279,-151.0,0.00075123,120]
[337421955,1725658307290,-200.0,0.00075342,120]
[337421956,1725658307299,-6817.85583646,0.00075444,120]
[337421957,1725658307308,-750.0,0.00075703,120]
[337421958,1725658307399,-414.787129,0.00075934,120]
[337421959,1725658307417,-3000.0,0.00076409,120]
[337421960,1725658307426,-200.0,0.00076712,120]
[337421961,1725658307435,-151.0,0.00076795,120]
[337421962,1725658307445,-151.0,0.00076849,120]
[337421963,1725658307456,-600.0,0.00078,120]
[337421964,1725658307466,-600.0,0.00078,120]
[337421965,1725658307475,-600.0,0.00078,120]
[337421966,1725658307485,-583.57,0.00078,30]
[337421967,1725658307495,-707.26,0.00078,30]
[337421968,1725658307504,-200.0,0.00078082,120]
[337421969,1725658307515,-151.0,0.00078466,120]
[337421970,1725658307525,-3000.0,0.00079121,120]
[337421971,1725658307535,-750.0,0.00079308,120]
[337421972,1725658307547,-200.0,0.00079452,120]
[337421973,1725658307556,-151.0,0.00079452,120]
[337421974,1725658307566,-278.75094904,0.00079999,30]
[337421975,1725658307575,-250.0,0.0008,120]
[337421976,1725658307586,-666.723322,0.0008,50]
[337421977,1725658307597,-13859.44996813,0.0008,2]
[337421978,1725658307608,-100080.4662763,0.0008,120]
[337421979,1725658307618,-500.0,0.0008,120]
[337421980,1725658307627,-500.0,0.0008,120]
[337421981,1725658307636,-15000.0,0.0008,120]
[337421982,1725658307646,-1945.438919,0.0008,120]
[337421983,1725658307655,-163.438529,0.00080061,120]
[337421984,1725658307665,-151.0,0.00080137,120]
[337421985,1725658307675,-200.0,0.00080821,120]
[337421986,1725658307687,-151.0,0.00081808,120]
[337421987,1725658307697,-3000.0,0.00081833,120]
[337421988,1725658307706,-414.787129,0.00082039,120]
[337421989,1725658307715,-151.0,0.00082055,120]
[337421990,1725658307725,-5000.0,0.00082191,120]
[337421991,1725658307735,-5000.0,0.00082191,120]
[337421992,1725658307746,-263.16557975,0.00082191,120]
[337421993,1725658307756,-5000.0,0.00082191,120]
[337421994,1725658307766,-5000.0,0.00082191,120]
[337421995,1725658307775,-5000.0,0.00082191,120]
[337421996,1725658307785,-750.0,0.00082913,120]
[337421997,1725658307796,-151.0,0.00083479,120]
[337421998,1725658307805,-466.95,0.00084,60]
[337421999,1725658307815,-2000.0,0.000842,120]
[337422000,1725658307825,-152.76035624,0.0008445,120]
[337422001,1725658307834,-3000.0,0.00084545,120]
[337422002,1725658307843,-151.0,0.00084658,120]
[337422003,1725658307852,-500.0,0.00085,120]
[337422004,1725658307861,-151.0,0.00085151,120]
[337422005,1725658307871,-181.63,0.00086,120]
[337422006,1725658307880,-750.0,0.00086518,120]
[337422007,1725658307890,-151.0,0.00086822,120]
[337422008,1725658307899,-3000.0,0.00087258,120]
[337422009,1725658307909,-151.0,0.0008726,120]
[337422010,1725658307918,-414.787129,0.00088144,120]
[337422011,1725658307928,-151.0,0.00088493,120]
[337422012,1725658307937,-55000.0,0.000888,120]
[337422013,1725658307947,-279.0,0.00089863,120]
[337422014,1725658307956,-3000.0,0.0008997,120]
[337422015,1725658307965,-300.0,0.0009,120]
[337422016,1725658307974,-17000.0,0.0009,120]
[337422017,1725658307984,-500.0,0.0009,120]
[337422018,1725658307993,-750.0,0.00090123,120]
[337422019,1725658308003,-274.0,0.00090164,120]
[337422020,1725658308012,-440.0,0.00092301,120]
[337422021,1725658308022,-440.0,0.00092305,120]
[337422022,1725658308032,-3000.0,0.00092682,120]
[337422023,1725658308043,-800.53486802,0.00093022,28]
[337422024,1725658308052,-750.0,0.00093727,120]
[337422025,1725658308062,-65989.98,0.00094,60]
[337422026,1725658308071,-339.3,0.00094,60]
[337422027,1725658308081,-2000.0,0.000942,120]
[337422028,1725658308090,-23297.7148,0.000942,120]
[337422029,1725658308099,-414.787129,0.00094249,120]
[337422030,1725658308109,-152.76035624,0.0009445,120]
[337422031,1725658308119,-6099.9839073,0.0009488,60]
[337422032,1725658308129,-24521.3495778,0.000949,120]
[337422033,1725658308140,-500.0,0.00095,120]
[337422034,1725658308150,-225.39438043,0.00095,120]
[337422035,1725658308160,-163.438529,0.00095282,120]
[337422036,1725658308170,-3000.0,0.00095394,120]
[337422037,1725658308179,-2724.3,0.00097,60]
[337422038,1725658308188,-750.0,0.00097332,120]
[337422039,1725658308197,-7011.55006396,0.000975,30]
[337422040,1725658308207,-3000.0,0.00098106,120]
[337422041,1725658308216,-19635.0,0.00098695,120]
[337422042,1725658308226,-44019.84173369,0.0009888,120]
[337422045,1725658469088,8077.51344073,0.0001,2]
[337422047,1725658517654,188.75176673,0.00033542,30]
[337422054,1725659138163,-166.7406804,0.00018755,2]
[337422055,1725659138185,-400.26743401,0.00019068,2]
[337422056,1725659138207,-300.0,0.00019167,2]
[337422057,1725659138230,-29827.2844832,0.00019168,2]
[337422058,1725659138253,-169728.10550739,0.00019168,2]
[337422059,1725659147281,-131565.80041261,0.00019168,2]
[337422060,1725659147303,-500.0,0.00019178,2]
[337422061,1725659147325,-191.83303239,0.00019178,2]
[337422066,1725659228146,-200.0,0.00019178,2]
[337422067,1725659228168,-500.0,0.00019178,2]
[337422068,1725659228189,-121.34302047,0.00019178,2]
[337422069,1725659229111,-378.65697953,0.00019178,2]
[337422070,1725659229132,-500.0,0.00019178,2]
[337422071,1725659229152,-500.0,0.00019178,2]
[337422072,1725659229173,-500.0,0.00019178,2]
[337422073,1725659229197,-500.0,0.00019178,2]
[337422074,1725659229230,-500.0,0.00019178,2]
[337422075,1725659229252,-338.56419716,0.00019178,2]
[337422076,1725659229273,-500.0,0.00019178,2]
[337422077,1725659229293,-500.0,0.00019178,2]
[337422078,1725659229316,-500.0,0.00019178,2]
[337422079,1725659229339,-500.0,0.00019178,2]
[337422080,1725659229364,-500.0,0.00019178,2]
[337422081,1725659229388,-500.0,0.00019178,2]
[337422082,1725659229408,-557.06896443,0.00019178,2]
[337422083,1725659229428,-500.0,0.00019178,2]
[337422084,1725659229448,-500.0,0.00019178,2]
[337422085,1725659229468,-500.0,0.00019178,2]
[337422086,1725659229488,-500.0,0.00019178,2]
[337422087,1725659229510,-500.0,0.00019178,2]
[337422088,1725659229532,-500.0,0.00019178,2]
[337422089,1725659229555,-500.0,0.00019178,2]
[337422090,1725659229576,-500.0,0.00019178,2]
[337422091,1725659229598,-500.0,0.00019178,2]
[337422092,1725659229621,-500.0,0.00019178,2]
[337422093,1725659229642,-500.0,0.00019178,2]
[337422094,1725659229663,-500.0,0.00019178,2]
[337422095,1725659229684,-500.0,0.00019178,2]
[337422096,1725659229704,-216.38354753,0.00019178,2]
[337422097,1725659229727,-500.0,0.00019178,2]
[337422098,1725659229756,-500.0,0.00019178,2]
[337422099,1725659229777,-500.0,0.00019178,2]
[337422100,1725659229798,-500.0,0.00019178,2]
[337422101,1725659229821,-500.0,0.00019178,2]
[337422102,1725659229845,-500.0,0.00019178,2]
[337422103,1725659229867,-500.0,0.00019178,2]
[337422104,1725659229887,-500.0,0.00019178,2]
[337422105,1725659229915,-500.0,0.00019178,2]
[337422106,1725659229940,-500.0,0.00019178,2]
[337422107,1725659229964,-500.0,0.00019178,2]
[337422108,1725659229986,-552.22032543,0.00019178,2]
[337422109,1725659230007,-500.0,0.00019178,2]
[337422110,1725659230029,-500.0,0.00019178,2]
[337422111,1725659230049,-500.0,0.00019178,2]
[337422112,1725659230069,-500.0,0.00019178,2]
[337422113,1725659230092,-500.0,0.00019178,2]
[337422114,1725659230116,-500.0,0.00019178,2]
[337422115,1725659230142,-544.08352619,0.00019178,2]
[337422116,1725659230164,-500.0,0.00019178,2]
[337422117,1725659230185,-500.0,0.00019178,2]
[337422118,1725659230206,-550.92727771,0.00019178,2]
[337422119,1725659230227,-500.0,0.00019178,2]
[337422120,1725659230254,-500.0,0.00019178,2]
[337422121,1725659230273,-500.0,0.00019178,2]
[337422122,1725659230294,-500.0,0.00019178,2]
[337422123,1725659230316,-500.0,0.00019178,2]
[337422124,1725659230338,-500.0,0.00019178,2]
[337422125,1725659230358,-500.0,0.00019178,2]
[337422126,1725659230380,-500.0,0.00019178,2]
[337422127,1725659230400,-500.0,0.00019178,2]
[337422128,1725659230422,-500.0,0.00019178,2]
[337422129,1725659230446,-500.0,0.00019178,2]
[337422130,1725659230466,-500.0,0.00019178,2]